[Event "Werder IM-Turnier 2018"]
[Site "Bremen"]
[Date "2018.06.17"]
[Round "1"]
[White "Molchanov, Oleksii"]
[Black "Grigorian, Spartak"]
[Result "1/2-1/2"]
[ECO "D32"]
[WhiteElo "2350"]
[BlackElo "2359"]
[Annotator "RC"]
[PlyCount "99"]
[EventDate "2018.06.16"]
[EventType "tourn"]
[EventCountry "GER"]
[SourceTitle "playchess.com"]
[Source "ChessBase"]
[SourceQuality "1"]
[TimeControl "40/5400+30:1800+30"]

1. Nf3 {[%emt 0:00:00]} d5 {[%emt 0:00:08]} 2. e3 {[%emt 0:00:05]} Nf6 {[%emt 0:00:18]} 3. c4 {[%emt 0:00:14]} e6 {[%emt 0:00:11]} 4. b3 {[%emt 0:00:34]} c5 {[%emt 0:01:08]} 5. Bb2 {[%emt 0:02:25]} Nc6 {[%emt 0:01:03]} 6. cxd5 {[%emt 0:01:37]} exd5 {[%emt 0:00:03]} 7. Be2 {[%emt 0:01:00]} Bd6 {[%emt 0:05:43]} 8. Nc3 {[%emt 0:02:43]} O-O {[%emt 0:03:38]} 9. d4 {[%emt 0:01:47]} cxd4 {[%emt 0:06:01]} 10. Nxd4 {[%emt 0:00:29]} Re8 {[%emt 0:00:29]} 11. O-O {[%emt 0:02:59]} Nxd4 {[%emt 0:27:27]} 12. Qxd4 {[%emt 0:00:29]} Be5 {[%emt 0:00:05]} 13. Qd3 {[%emt 0:08:26]} Ne4 {[%emt 0:07:07]} 14. Rad1 {[%emt 0:20:38]} Bf5 {[%emt 0:06:48]} 15. Nxe4 {[%emt 0:03:58]} Bxe4 {[%emt 0:03:30]} 16. Qd2 {[%emt 0:00:33]} Bxh2+ {[%emt 0:13:55]} 17. Kxh2 {[%emt 0:01:04]} Qh4+ {[%emt 0:00:09]} 18. Kg1 {[%emt 0:00:07]} Bxg2 {[%emt 0:00:34]} 19. Kxg2 {[%emt 0:19:45]} Re6 {[%emt 0:00:13]} 20. Rh1 {[%emt 0:00:33]} Rg6+ {[%emt 0:01:33]} 21. Bg4 {[%emt 0:00:11]} Qxg4+ {[%emt 0:02:41]} 22. Kf1 {[%emt 0:01:09]} Rc8 {[%emt 0:06:10]} 23. Ke1 {[%emt 0:05:41]} Rg5 {[%emt 0:02:31]} 24. Qd4 {[%emt 0:03:05]} Qg2 {[%emt 0:03:32]} 25. Qh4 {[%emt 0:01:39]} h6 {[%emt 0:00:02]} 26. Rf1 {[%emt 0:06:28]} Rc2 {[%emt 0:00:38]} 27. Bc1 {[%emt 0:03:37]} Rxa2 {[%emt 0:05:54]} 28. Bd2 {[%emt 0:00:07]} d4 {[%emt 0:01:18]} 29. Qxd4 {[%emt 0:01:26]} Rd5 {[%emt 0:00:02]} 30. Qc4 {[%emt 0:02:47]} b5 {[%emt 0:01:09]} 31. Qe2 {[%emt 0:01:14]} Qe4 {[%emt 0:00:49]} 32. f3 {[%emt 0:00:58]} Qc2 {[%emt 0:00:17]} 33. e4 {[%emt 0:02:57]} Rd3 {[%emt 0:00:17]} 34. e5 {[%emt 0:00:51]} Qxb3 {[%emt 0:00:25]} 35. Qe4 {[%emt 0:01:07]} Raxd2 {[%emt 0:00:29]} 36. Qa8+ {[%emt 0:02:33]} Kh7 {[%emt 0:00:01]} 37. Rxd2 {[%emt 0:01:26]} Qb1+ {[%emt 0:00:05]} 38. Ke2 {[%emt 0:00:10]} Rxd2+ {[%emt 0:00:03]} 39. Kxd2 {[%emt 0:00:05]} Qxf1 {[%emt 0:00:03]} 40. Qe4+ {[%emt 0:00:45]} Kh8 {[%emt 0:31:12]} 41. Qa8+ {[%emt 0:03:36]} Kh7 {[%emt 0:00:00]} 42. Qe4+ {[%emt 0:00:04]} g6 {[%emt 0:00:00]} 43. e6 {[%emt 0:00:48]} Qf2+ {[%emt 0:00:00]} 44. Kd3 {[%emt 0:01:14]} fxe6 {[%emt 0:00:00]} 45. Qb7+ {[%emt 0:00:29]} Kg8 {[%emt 0:00:00]} 46. Qc8+ {[%emt 0:01:00]} Kf7 {[%emt 0:00:00]} 47. Qc7+ {[%emt 0:00:11]} Ke8 {[%emt 0:00:00]} 48. Qc8+ {[%emt 0:00:09]} Ke7 {[%emt 0:00:00]} 49. Qc7+ {[%emt 0:00:05]} Kf6 {[%emt 0:00:00]} 50. Qf4+ {[%emt 0:00:05] Ke5 [%clk 0:00:00] Ke4+ [%clk 0:00:00]} 1/2-1/2

[Event "Werder IM-Turnier 2018"]
[Site "Bremen"]
[Date "2018.06.17"]
[Round "2"]
[White "Charmeteau, Sven"]
[Black "Reuker, Jari"]
[Result "0-1"]
[ECO "C45"]
[WhiteElo "2287"]
[BlackElo "2389"]
[Annotator "ChessBase"]
[PlyCount "76"]
[EventDate "2018.06.16"]
[EventType "tourn"]
[EventCountry "GER"]
[SourceTitle "playchess.com"]
[Source "ChessBase"]
[SourceQuality "1"]
[TimeControl "40/5400+30:1800+30"]

1. e4 {[%emt 0:02:01]} e5 {[%emt 0:00:11]} 2. Nf3 {[%emt 0:00:11]} Nc6 {[%emt 0:00:07]} 3. d4 {[%emt 0:00:09]} exd4 {[%emt 0:00:09]} 4. Nxd4 {[%emt 0:00:07]} Nf6 {[%emt 0:00:04]} 5. Nxc6 {[%emt 0:00:08]} bxc6 {[%emt 0:00:07]} 6. e5 {[%emt 0:00:07]} Nd5 {[%emt 0:00:06]} 7. c4 {[%emt 0:03:36]} Nb6 {[%emt 0:00:07]} 8. Bd3 {[%emt 0:00:31]} g6 {[%emt 0:06:47]} 9. Nc3 {[%emt 0:10:09]} Bg7 {[%emt 0:01:47]} 10. Bf4 {[%emt 0:09:42]} O-O {[%emt 0:05:56]} 11. O-O {[%emt 0:00:54]} d5 {[%emt 0:05:52]} 12. exd6 {[%emt 0:05:06]} Bxc3 {[%emt 0:12:48]} 13. bxc3 {[%emt 0:00:23]} cxd6 {[%emt 0:00:22]} 14. Be4 {[%emt 0:01:21]} d5 {[%emt 0:02:22]} 15. cxd5 {[%emt 0:00:50]} cxd5 {[%emt 0:00:47]} 16. Bf3 {[%emt 0:03:08]} Qf6 {[%emt 0:02:22]} 17. Qc1 {[%emt 0:11:16]} Re8 {[%emt 0:07:58]} 18. Be3 {[%emt 0:02:38]} Qd6 {[%emt 0:01:43]} 19. Bd4 {[%emt 0:07:14]} Nc4 {[%emt 0:07:12]} 20. Qh6 {[%emt 0:15:37]} Ne5 {[%emt 0:03:29]} 21. Rfe1 {[%emt 0:00:15]} f6 {[%emt 0:03:23]} 22. Bd1 {[%emt 0:05:53]} Bf5 {[%emt 0:04:03]} 23. Qh4 {[%emt 0:04:33]} Re6 {[%emt 0:05:44]} 24. Bb3 {[%emt 0:10:12]} Rae8 {[%emt 0:04:44]} 25. Re3 {[%emt 0:00:45]} Ng4 {[%emt 0:06:44]} 26. Rxe6 {[%emt 0:00:06]} Qxe6 {[%emt 0:00:35]} 27. f3 {[%emt 0:00:13]} Ne5 {[%emt 0:00:38]} 28. Bxa7 {[%emt 0:01:52]} Nd3 {[%emt 0:09:03]} 29. g4 {[%emt 0:03:53]} Qf7 {[%emt 0:03:26]} 30. Bd4 {[%emt 0:00:24]} g5 {[%emt 0:00:34]} 31. Qh6 {[%emt 0:00:44]} Bg6 {[%emt 0:00:20]} 32. h4 {[%emt 0:00:07]} Ne1 {[%emt 0:02:09]} 33. Rxe1 {[%emt 0:01:44]} Rxe1+ {[%emt 0:00:06]} 34. Kf2 {[%emt 0:00:16]} Rh1 {[%emt 0:01:34]} 35. h5 {[%emt 0:00:39]} Qe6 {[%emt 0:01:06]} 36. Kg2 {[%emt 0:00:25]} Be4 {[%emt 0:03:07]} 37. Qxf6 {[%emt 0:00:43]} Qxg4+ {[%emt 0:00:10]} 38. Kf2 {[%emt 0:00:09]} Qg1+ {[%emt 0:00:15]} 0-1

[Event "Werder IM-Turnier 2018"]
[Site "Bremen"]
[Date "2018.06.19"]
[Round "4"]
[White "Osmanodja, Filiz"]
[Black "Grabarczyk, Miroslaw"]
[Result "1/2-1/2"]
[ECO "C42"]
[WhiteElo "2352"]
[BlackElo "2402"]
[Annotator "NA"]
[PlyCount "47"]
[EventDate "2018.06.16"]
[EventType "tourn"]
[EventCountry "GER"]
[SourceTitle "playchess.com"]
[Source "ChessBase"]
[SourceQuality "1"]
[TimeControl "40/5400+30:1800+30"]

1. e4 {[%emt 0:00:00]} e5 {[%emt 0:00:09]} 2. Nf3 {[%emt 0:00:00]} Nf6 {[%emt 0:00:20]} 3. Nxe5 {[%emt 0:00:00]} d6 {[%emt 0:00:07]} 4. Nf3 {[%emt 0:00:00]} Nxe4 {[%emt 0:00:10]} 5. Nc3 {[%emt 0:00:00]} Nf6 {[%emt 0:00:18]} 6. d4 {[%emt 0:00:00]} Be7 {[%emt 0:00:26]} 7. Bd3 {[%emt 0:01:02]} Bg4 {[%emt 0:00:53]} 8. h3 {[%emt 0:01:26]} Bh5 {[%emt 0:00:40]} 9. Bf4 {[%emt 0:01:16]} O-O {[%emt 0:05:59]} 10. g4 {[%emt 0:07:02]} Bg6 {[%emt 0:01:22]} 11. d5 {[%emt 0:04:22]} Re8 {[%emt 0:09:19]} 12. Bxg6 {[%emt 0:02:13]} hxg6 {[%emt 0:02:36]} 13. Qd2 {[%emt 0:04:24]} Bf8+ {[%emt 0:00:41]} 14. Be3 {[%emt 0:05:27]} Nbd7 {[%emt 0:02:32]} 15. O-O-O {[%emt 0:03:32]} Nb6 {[%emt 0:00:16]} 16. Bg5 {[%emt 0:14:14]} Qd7 {[%emt 0:02:29]} 17. Qf4 {[%emt 0:11:37]} Nh7 {[%emt 0:03:36]} 18. Bh4 {[%emt 0:02:21]} c6 {[%emt 0:14:55]} 19. g5 {[%emt 0:07:22]} Nxd5 {[%emt 0:17:10]} 20. Nxd5 {[%emt 0:03:59]} cxd5 {[%emt 0:00:06]} 21. Rxd5 {[%emt 0:07:59]} Rac8 {[%emt 0:00:29]} 22. c3 {[%emt 0:04:19]} Rc5 {[%emt 0:18:17]} 23. Qd2 {[%emt 0:06:26]} Qa4 {[%emt 0:07:49]} 24. Kb1 {[%emt 0:12:59] Qe4+Rd3Rd5 [%clk 0:00:00] Rd1 [%clk 0:00:00]} 1/2-1/2

[Event "Werder IM-Turnier 2018"]
[Site "Bremen"]
[Date "2018.06.19"]
[Round "4"]
[White "Molchanov, Oleksii"]
[Black "Reuker, Jari"]
[Result "1/2-1/2"]
[ECO "A13"]
[WhiteElo "2350"]
[BlackElo "2389"]
[Annotator "NA"]
[PlyCount "130"]
[EventDate "2018.06.16"]
[EventType "tourn"]
[EventCountry "GER"]
[SourceTitle "playchess.com"]
[Source "ChessBase"]
[SourceQuality "1"]
[TimeControl "40/5400+30:1800+30"]

1. c4 {[%emt 0:00:00]} Nf6 {[%emt 0:00:13]} 2. Nf3 {[%emt 0:00:21]} e6 {[%emt 0:00:07]} 3. e3 {[%emt 0:00:28]} d5 {[%emt 0:00:20]} 4. b3 {[%emt 0:00:27]} Be7 {[%emt 0:00:36]} 5. Bb2 {[%emt 0:00:25]} O-O {[%emt 0:01:03]} 6. Nc3 {[%emt 0:00:35]} dxc4 {[%emt 0:01:10] A13: English Opening: 1...e6} (6... b6 7. cxd5 Nxd5 8. Nxd5 exd5 9. Qc2 c5 10. a3 Nc6 11. Bb5 Bb7 12. O-O Rc8 13. Rac1 a6 14. Be2 d4 {½-½ (36) Carlsen,M (2843)-Karjakin,S (2782) Stavanger 2018}) 7. Bxc4 {[%emt 0:06:40]} a6 {[%emt 0:00:11]} 8. d4 {[%emt 0:01:22]} b5 {[%emt 0:01:24]} 9. Be2 {[%emt 0:11:40]} Bb7 {[%emt 0:03:11]} 10. O-O {[%emt 0:00:07]} c5 $146 {[%emt 0:03:50]} ({Predecessor:} 10... Nbd7 11. Rc1 c5 12. dxc5 Nxc5 13. Qxd8 Rfxd8 14. Rfd1 {0-1 (45) Lie,K (2537)-Yatzenko,A (2356) chess.com INT 2017}) 11. dxc5 {[%emt 0:05:32]} Bxc5 {[%emt 0:01:39]} 12. Qxd8 {[%emt 0:05:27]} Rxd8 {[%emt 0:00:14]} 13. Rac1 {[%emt 0:04:02]} Nbd7 {[%emt 0:01:30]} 14. Rfd1 {[%emt 0:00:49]} Rac8 {[%emt 0:01:56]} 15. Nb1 {[%emt 0:03:48]} Nd5 {[%emt 0:18:46]} 16. Ne5 {[%emt 0:13:02]} Nxe5 {[%emt 0:05:16]} 17. Bxe5 {[%emt 0:00:11]} f6 {[%emt 0:02:00]} 18. Bb2 {[%emt 0:00:57]} Bb6 {[%emt 0:02:27]} 19. Bf3 {[%emt 0:01:55]} Rxc1 {[%emt 0:07:57]} 20. Rxc1 {[%emt 0:00:56]} Rd7 {[%emt 0:01:22]} 21. Rd1 {[%emt 0:06:30]} Rc7 {[%emt 0:05:14]} 22. Rc1 {[%emt 0:02:18]} Rxc1+ {[%emt 0:02:40]} 23. Bxc1 {[%emt 0:00:02]} Kf7 {[%emt 0:02:27]} 24. Kf1 {[%emt 0:01:33]} e5 {[%emt 0:02:09]} 25. Bd2 {[%emt 0:03:51]} Ke6 {[%emt 0:01:16]} 26. Nc3 {[%emt 0:05:35]} Bc6 {[%emt 0:01:22]} 27. Nxd5 {[%emt 0:03:09]} Bxd5 {[%emt 0:00:05]} 28. Bxd5+ {[%emt 0:03:33]} Kxd5 {[%emt 0:00:04]} 29. Ke2 {[%emt 0:00:25]} h5 {[%emt 0:04:23]} 30. f3 {[%emt 0:02:20]} e4 {[%emt 0:00:10]} 31. f4 {[%emt 0:02:47]} Ke6 {[%emt 0:04:48]} 32. h3 {[%emt 0:02:53]} Kf5 {[%emt 0:00:06]} 33. g3 {[%emt 0:00:33]} Bc5 {[%emt 0:01:45]} 34. Bc3 {[%emt 0:02:25]} Bf8 {[%emt 0:03:13]} 35. Be1 {[%emt 0:00:50]} Ke6 {[%emt 0:01:38]} 36. g4 {[%emt 0:00:50]} hxg4 {[%emt 0:00:06]} 37. hxg4 {[%emt 0:00:02]} f5 {[%emt 0:00:16]} 38. gxf5+ {[%emt 0:00:48]} Kxf5 {[%emt 0:00:07]} 39. Bc3 {[%emt 0:00:28]} g6 {[%emt 0:01:57]} 40. Bd4 {[%emt 0:01:01]} Ba3 {[%emt 0:32:03]} 41. Kd2 {[%emt 0:31:35]} Kg4 {[%emt 0:00:30]} 42. Ke2 {[%emt 0:00:02]} Kf5 {[%emt 0:01:31]} 43. Kd2 {[%emt 0:00:12]} Bb4+ {[%emt 0:00:09]} 44. Ke2 {[%emt 0:00:14]} Ke6 {[%emt 0:01:19]} 45. Bg7 {[%emt 0:02:15]} Bc5 {[%emt 0:03:18]} 46. Bc3 {[%emt 0:00:33]} Kd5 {[%emt 0:00:25]} 47. Kd2 {[%emt 0:01:16]} Be7 {[%emt 0:00:44]} 48. Ke2 {[%emt 0:00:47]} Bh4 {[%emt 0:01:15]} 49. Kd2 {[%emt 0:00:43]} Bd8 {[%emt 0:00:16]} 50. Ke2 {[%emt 0:00:07]} a5 {[%emt 0:00:06]} 51. Kd2 {[%emt 0:00:42]} a4 {[%emt 0:00:25]} 52. Ke2 {[%emt 0:00:17]} Be7 {[%emt 0:00:19]} 53. Kd2 {[%emt 0:01:40]} Ba3 {[%emt 0:01:08]} 54. Kd1 {[%emt 0:01:05]} Kc5 {[%emt 0:00:30]} 55. Bf6 {[%emt 0:03:45]} Kd5 {[%emt 0:02:15]} 56. Bc3 {[%emt 0:00:16]} Ke6 {[%emt 0:00:21]} 57. Ke2 {[%emt 0:00:25]} Kf5 {[%emt 0:00:06]} 58. Kd2 {[%emt 0:00:32]} Be7 {[%emt 0:01:00]} 59. Ke2 {[%emt 0:00:00]} Bc5 {[%emt 0:00:00]} 60. Bd2 {[%emt 0:00:00]} Ba3 {[%emt 0:00:00]} 61. Bc3 {[%emt 0:00:00]} Bc1 {[%emt 0:00:00]} 62. Bd4 $11 {[%emt 0:00:00]} Ke6 {[%emt 0:00:00]} 63. Kd1 {[%emt 0:00:00]} Ba3 {[%emt 0:00:00]} 64. Bc3 {[%emt 0:00:00]} Bc5 {[%emt 0:00:00]} 65. Ke2 {[%emt 0:00:00]} Be7 {[%emt 0:00:00]} 1/2-1/2

[Event "Werder IM-Turnier 2018"]
[Site "Bremen"]
[Date "2018.06.19"]
[Round "4"]
[White "Charmeteau, Sven"]
[Black "Skliarov, Viktor"]
[Result "1/2-1/2"]
[ECO "B33"]
[WhiteElo "2287"]
[BlackElo "2359"]
[Annotator "ChessBase"]
[PlyCount "82"]
[EventDate "2018.06.16"]
[EventType "tourn"]
[EventCountry "GER"]
[SourceTitle "playchess.com"]
[Source "ChessBase"]
[SourceQuality "1"]
[TimeControl "40/5400+30:1800+30"]

1. e4 {[%emt 0:00:00]} c5 {[%emt 0:00:08]} 2. Nf3 {[%emt 0:00:00]} Nc6 {[%emt 0:00:08]} 3. d4 {[%emt 0:00:00]} cxd4 {[%emt 0:00:06]} 4. Nxd4 {[%emt 0:00:00]} Nf6 {[%emt 0:00:04]} 5. Nc3 {[%emt 0:00:04]} e5 {[%emt 0:00:06]} 6. Ndb5 {[%emt 0:00:10]} d6 {[%emt 0:00:04]} 7. Bg5 {[%emt 0:00:07]} a6 {[%emt 0:00:05]} 8. Na3 {[%emt 0:00:07]} b5 {[%emt 0:00:03]} 9. Bxf6 {[%emt 0:00:11]} gxf6 {[%emt 0:00:05]} 10. Nd5 {[%emt 0:00:11]} f5 {[%emt 0:00:05]} 11. Bd3 {[%emt 0:00:12]} Be6 {[%emt 0:00:05]} 12. c3 {[%emt 0:00:11]} Bg7 {[%emt 0:00:13]} 13. Nxb5 {[%emt 0:00:24]} axb5 {[%emt 0:00:42]} 14. Bxb5 {[%emt 0:00:06]} Bd7 {[%emt 0:00:04]} 15. exf5 {[%emt 0:00:14]} e4 {[%emt 0:03:52]} 16. Qg4 {[%emt 0:06:16]} Kf8 {[%emt 0:01:37]} 17. Qh5 {[%emt 0:02:39]} Ne5 {[%emt 0:06:25]} 18. Bxd7 {[%emt 0:01:41]} Nxd7 {[%emt 0:02:41]} 19. O-O {[%emt 0:00:28]} Nf6 {[%emt 0:03:45]} 20. Nxf6 {[%emt 0:01:07]} Qxf6 {[%emt 0:00:52]} 21. Rfe1 {[%emt 0:13:48]} d5 {[%emt 0:02:33]} 22. Rad1 {[%emt 0:01:42]} Rd8 {[%emt 0:10:04]} 23. f3 {[%emt 0:18:14]} e3 {[%emt 0:04:55]} 24. Rd4 {[%emt 0:24:27]} Qh6 {[%emt 0:11:18]} 25. Qxh6 {[%emt 0:00:23]} Bxh6 {[%emt 0:00:05]} 26. f4 {[%emt 0:01:09]} Bg7 {[%emt 0:00:05]} 27. Rd3 {[%emt 0:01:16]} d4 {[%emt 0:02:20]} 28. Rexe3 {[%emt 0:03:54]} Bf6 {[%emt 0:02:21]} 29. cxd4 {[%emt 0:10:21]} Rxd4 {[%emt 0:00:20]} 30. Rf3 {[%emt 0:02:08]} Ke7 {[%emt 0:05:38]} 31. Rde3+ {[%emt 0:03:35]} Kd6 {[%emt 0:03:30]} 32. Re2 {[%emt 0:00:12]} Rd1+ {[%emt 0:07:39]} 33. Kf2 {[%emt 0:00:07]} Bd4+ {[%emt 0:00:05]} 34. Kg3 {[%emt 0:00:06]} Rb8 {[%emt 0:00:49]} 35. b3 {[%emt 0:00:53]} Bf6 {[%emt 0:03:07]} 36. Kh3 {[%emt 0:02:03]} h5 {[%emt 0:02:33]} 37. Re4 {[%emt 0:04:42]} Rb5 {[%emt 0:06:18]} 38. Ra4 {[%emt 0:00:54]} Bd4 {[%emt 0:03:34]} 39. Ra6+ {[%emt 0:02:44]} Kd5 {[%emt 0:15:23]} 40. a4 {[%emt 0:02:23]} Rb4 {[%emt 0:33:35]} 41. Rh6 {[%emt 0:30:44]} Rb1 {[%emt 0:00:00]} 1/2-1/2

[Event "Werder IM-Turnier 2018"]
[Site "Bremen"]
[Date "2018.06.19"]
[Round "4"]
[White "Kardoeus, David"]
[Black "Wachinger, Nikolas"]
[Result "1/2-1/2"]
[ECO "B28"]
[WhiteElo "2226"]
[BlackElo "2292"]
[Annotator "ChessBase"]
[PlyCount "103"]
[EventDate "2018.06.16"]
[EventType "tourn"]
[EventCountry "GER"]
[SourceTitle "playchess.com"]
[Source "ChessBase"]
[SourceQuality "1"]
[TimeControl "40/5400+30:1800+30"]

1. e4 {[%emt 0:00:57]} c5 {[%emt 0:00:08]} 2. Nf3 {[%emt 0:00:19]} a6 {[%emt 0:00:11]} 3. c4 {[%emt 0:01:13]} b6 {[%emt 0:00:14]} 4. Bd3 {[%emt 0:01:09]} Bb7 {[%emt 0:03:18]} 5. Qe2 {[%emt 0:02:46]} g6 {[%emt 0:02:53]} 6. h4 {[%emt 0:02:48]} h6 {[%emt 0:07:20]} 7. Nc3 {[%emt 0:07:57]} Bg7 {[%emt 0:06:12]} 8. e5 {[%emt 0:13:46]} Nc6 {[%emt 0:01:49]} 9. h5 {[%emt 0:09:28]} g5 {[%emt 0:01:08]} 10. Ne4 {[%emt 0:02:25]} Qb8 {[%emt 0:03:34]} 11. b4 {[%emt 0:08:15]} g4 {[%emt 0:08:38]} 12. Nh4 {[%emt 0:05:47]} Qxe5 {[%emt 0:00:39]} 13. Rb1 {[%emt 0:00:58]} Nd4 {[%emt 0:04:54]} 14. Qxg4 {[%emt 0:00:59]} f5 {[%emt 0:13:21]} 15. Qg6+ {[%emt 0:00:11]} Kd8 {[%emt 0:11:00]} 16. Qxb6+ {[%emt 0:00:21]} Qc7 {[%emt 0:00:01]} 17. Qxc7+ {[%emt 0:00:25]} Kxc7 {[%emt 0:00:01]} 18. Nxc5 {[%emt 0:00:16]} Bc6 {[%emt 0:00:21]} 19. Nxf5 {[%emt 0:00:44]} Bxg2 {[%emt 0:00:47]} 20. Nxg7 {[%emt 0:03:43]} Bxh1 {[%emt 0:01:07]} 21. Bb2 {[%emt 0:00:11]} e5 {[%emt 0:02:41]} 22. Nf5 {[%emt 0:09:59]} Nf6 {[%emt 0:03:36]} 23. Nxd4 {[%emt 0:00:58]} exd4 {[%emt 0:00:07]} 24. Bg6 {[%emt 0:02:09]} Bf3 {[%emt 0:04:40]} 25. Bxd4 {[%emt 0:00:23]} Rhf8 {[%emt 0:00:15]} 26. Be5+ {[%emt 0:00:56]} Kc6 {[%emt 0:01:02]} 27. d4 {[%emt 0:00:12]} d6 {[%emt 0:09:57]} 28. d5+ {[%emt 0:01:09]} Nxd5 {[%emt 0:00:17]} 29. cxd5+ {[%emt 0:00:12]} Kxd5 {[%emt 0:00:25]} 30. Nd7 {[%emt 0:06:03]} dxe5 {[%emt 0:00:09]} 31. Nxf8 {[%emt 0:00:15]} Rxf8 {[%emt 0:00:02]} 32. b5 {[%emt 0:01:04]} axb5 {[%emt 0:01:58]} 33. Rxb5+ {[%emt 0:00:32]} Kd4 {[%emt 0:01:28]} 34. Rb4+ {[%emt 0:02:58]} Kc5 {[%emt 0:00:25]} 35. Rb3 {[%emt 0:01:20]} Bd5 {[%emt 0:02:12]} 36. Ra3 {[%emt 0:06:48]} Rb8 {[%emt 0:02:15]} 37. Ra5+ {[%emt 0:00:35]} Kd4 {[%emt 0:02:13]} 38. Ra4+ {[%emt 0:00:06]} Kc3 {[%emt 0:00:50]} 39. Ke2 {[%emt 0:01:07]} Bc4+ {[%emt 0:03:13]} 40. Kf3 {[%emt 0:01:39]} Rb2 {[%emt 0:31:26]} 41. Kg3 {[%emt 0:32:09]} Bd5 {[%emt 0:00:00]} 42. Ra7 {[%emt 0:00:00]} Rxa2 {[%emt 0:00:00]} 43. Rh7 {[%emt 0:00:00]} Ra1 {[%emt 0:00:00]} 44. f3 {[%emt 0:00:00]} Rf1 {[%emt 0:00:00]} 45. Be4 {[%emt 0:00:00]} Bxe4 {[%emt 0:00:00]} 46. fxe4 {[%emt 0:00:00]} Kd4 {[%emt 0:00:00]} 47. Rxh6 {[%emt 0:00:00]} Kxe4 {[%emt 0:00:00]} 48. Rh8 {[%emt 0:00:00]} Rh1 {[%emt 0:00:00]} 49. Kg2 {[%emt 0:00:00]} Rh4 {[%emt 0:00:00]} 50. Kg3 {[%emt 0:00:00]} Rh1 {[%emt 0:00:00]} 51. Kg2 {[%emt 0:00:00]} Rh4 {[%emt 0:00:00]} 52. Kg3 {[%emt 0:00:00]} 1/2-1/2

[Event "Werder IM-Turnier 2018"]
[Site "Bremen"]
[Date "2018.06.20"]
[Round "5"]
[White "Grabarczyk, Miroslaw"]
[Black "Molchanov, Oleksii"]
[Result "1/2-1/2"]
[ECO "E01"]
[WhiteElo "2402"]
[BlackElo "2350"]
[Annotator "NA"]
[PlyCount "70"]
[EventDate "2018.06.16"]
[EventType "tourn"]
[EventCountry "GER"]
[SourceTitle "playchess.com"]
[Source "ChessBase"]
[SourceQuality "1"]
[TimeControl "40/5400+30:1800+30"]

1. d4 {[%emt 0:00:00]} Nf6 {[%emt 0:00:25]} 2. c4 {[%emt 0:00:00]} e6 {[%emt 0:00:08]} 3. g3 {[%emt 0:00:17]} d5 {[%emt 0:00:30]} 4. Nf3 {[%emt 0:00:29]} Bb4+ {[%emt 0:00:20]} 5. Bd2 {[%emt 0:00:32]} Bd6 {[%emt 0:00:11]} 6. Bg2 {[%emt 0:01:35]} c6 {[%emt 0:00:08]} 7. Qc2 {[%emt 0:05:17]} O-O {[%emt 0:01:00]} 8. O-O {[%emt 0:00:50]} Nbd7 {[%emt 0:01:47]} 9. Bg5 {[%emt 0:03:32]} h6 {[%emt 0:01:49]} 10. Bxf6 {[%emt 0:01:18]} Nxf6 {[%emt 0:00:08]} 11. Nbd2 {[%emt 0:00:11]} b6 {[%emt 0:01:23]} 12. e4 {[%emt 0:00:47]} Be7 {[%emt 0:00:35]} 13. e5 {[%emt 0:04:21]} Nd7 {[%emt 0:00:09]} 14. cxd5 {[%emt 0:00:53]} cxd5 {[%emt 0:00:19]} 15. Rac1 {[%emt 0:01:33]} Ba6 {[%emt 0:07:05]} 16. Rfe1 {[%emt 0:00:39]} Rc8 {[%emt 0:01:35]} 17. Qa4 {[%emt 0:21:24]} Nb8 {[%emt 0:00:24]} 18. Bf1 {[%emt 0:01:34]} Bxf1 {[%emt 0:01:19]} 19. Kxf1 {[%emt 0:00:11]} Qd7 {[%emt 0:09:58]} 20. Qxd7 {[%emt 0:02:11]} Nxd7 {[%emt 0:00:07]} 21. Ke2 {[%emt 0:00:13]} f6 {[%emt 0:06:36]} 22. Nb3 {[%emt 0:00:24]} Kf7 {[%emt 0:00:45]} 23. exf6 {[%emt 0:04:21]} gxf6 {[%emt 0:01:30]} 24. Rxc8 {[%emt 0:00:58]} Rxc8 {[%emt 0:00:07]} 25. Rc1 {[%emt 0:00:05]} Rxc1 {[%emt 0:03:30]} 26. Nxc1 {[%emt 0:00:07]} h5 {[%emt 0:03:27]} 27. h3 {[%emt 0:01:44]} e5 {[%emt 0:03:16]} 28. Nh4 {[%emt 0:00:13]} Nb8 {[%emt 0:03:37]} 29. Nf5 {[%emt 0:13:24]} Bf8 {[%emt 0:01:00]} 30. Nd3 {[%emt 0:01:37]} Nc6 {[%emt 0:00:32]} 31. Kf1 {[%emt 0:05:40]} a5 {[%emt 0:05:46]} 32. a4 {[%emt 0:02:52]} Ke6 {[%emt 0:01:09]} 33. g4 {[%emt 0:00:18]} hxg4 {[%emt 0:01:11]} 34. hxg4 {[%emt 0:00:08]} Na7 {[%emt 0:04:45]} 35. Ke1 {[%emt 0:08:41]} b5 {[%emt 0:05:49]} 1/2-1/2